fUSD/lending_fUSD_20260323
["ID","MTS","AMOUNT","RATE_DAILY","PERIOD"]
[408783744,1774253443949,-154.0,0.000159,3]
[408783745,1774253443959,-2127.82485018,0.00015956,2]
[408783747,1774253443968,-500.0,0.00015973,2]
[408783748,1774253443978,-500.76215645,0.00015973,2]
[408783749,1774253443987,-316.52454984,0.00015973,2]
[408783750,1774253443996,-501.28156283,0.00015973,2]
[408783751,1774253444007,-500.0,0.00015973,2]
[408783752,1774253444016,-501.1635301,0.00015973,2]
[408783753,1774253444026,-500.0,0.00015973,2]
[408783754,1774253444035,-347.31626399,0.00015973,2]
[408783755,1774253444045,-505.85933034,0.00015973,2]
[408783756,1774253444055,-502.35924996,0.00015973,2]
[408783757,1774253444064,-210.30338749,0.00015973,2]
[408783758,1774253444073,-501.31011535,0.00015973,2]
[408783759,1774253444083,-500.0,0.00015973,2]
[408783760,1774253444092,-501.23288456,0.00015973,2]
[408783761,1774253444101,-500.0,0.00015973,2]
[408783762,1774253444111,-500.0,0.00015973,2]
[408783763,1774253444120,-500.0,0.00015973,2]
[408783764,1774253444130,-150.0,0.00015995,2]
[408783765,1774253444144,-140457.35377837,0.00016,2]
[408783766,1774253444154,-112373.42065835,0.00016,2]
[408783778,1774253669697,525.34,0.00017,60]
[408783779,1774253751666,531.25798057,9.633e-05,2]
[408783850,1774254399122,-196.09,0.00010252,2]
[408783851,1774254399143,-250.0,0.00011277,2]
[408783852,1774254399164,-166.66,0.00012115,2]
[408783853,1774254399184,-166.66,0.0001237,2]
[408783854,1774254399204,-2312.15,0.00012528,2]
[408783855,1774254399224,-250.0,0.00012528,2]
[408783856,1774254399244,-302.0,0.00012528,2]
[408783857,1774254399265,-166.66,0.00012625,2]
[408783858,1774254399285,-166.66,0.0001288,2]
[408783859,1774254399304,-1500.0,0.00012989,2]
[408783860,1774254399323,-104.76643279,0.00013,2]
[408783864,1774254535418,10000.01,9.5e-05,3]
[408783865,1774254535446,10000.01,9.5e-05,3]
[408783866,1774254535470,10000.01,9.5e-05,3]
[408783867,1774254535492,10000.01,9.5e-05,3]
[408783868,1774254535518,10000.01,9.5e-05,3]
[408783869,1774254535541,10000.01,9.5e-05,3]
[408783870,1774254535563,901.83127196,9.5e-05,3]
[408783871,1774254606502,159.0,9.5e-05,3]
[408783876,1774254631469,-510.61,9.999e-05,2]
[408783879,1774254631522,-388.019697,9.999e-05,2]
[408783880,1774254631549,-301.370303,9.999e-05,2]
[408783881,1774254631559,-300.0,9.999e-05,2]
[408783882,1774254631569,-4678.67695496,0.0001,2]
[408783883,1774254631578,-348.23357819,0.0001,2]
[408783884,1774254631587,-250.0,0.00010999,2]
[408783885,1774254631597,-300.0,0.00010999,2]
[408783886,1774254631607,-1680.0,0.00010999,2]
[408783887,1774254631618,-420.0,0.00010999,2]
[408783888,1774254631627,-2351.0,0.00012099,2]
[408783889,1774254631637,-587.0,0.00012099,2]
[408783890,1774254631647,-309.49358529,0.000125,2]
[408783891,1774254631657,-145.23356721,0.00013,2]
[408783892,1774254631667,-250.0,0.00013024,2]
[408783893,1774254631677,-210.03,0.00013048,2]
[408783894,1774254631687,-617.38,0.00013095,2]
[408783895,1774254631696,-166.66,0.00013135,2]
[408783896,1774254631706,-201.88,0.00013172,2]
[408783897,1774254631716,-1000.0,0.00013173,2]
[408783898,1774254631725,-549.42506222,0.0001324,2]
[408783899,1774254631734,-3292.0,0.00013309,2]
[408783900,1774254631744,-823.0,0.00013309,2]
[408783901,1774254631753,-10164.5246,0.00013378,2]
[408783902,1774254631763,-166.66,0.0001339,2]
[408783903,1774254631774,-3240.0,0.00013425,2]
[408783904,1774254631783,-105148.71039455,0.00013487,2]
[408783905,1774254631796,-24582.45370545,0.00013487,2]
[408783906,1774254631806,-175.62205846,0.00013562,2]
[408783907,1774254631815,-578.20924308,0.00013662,2]
[408783908,1774254631824,-500.0,0.00013662,2]
[408783909,1774254631834,-670.58624095,0.00013662,2]
[408783911,1774254631843,-500.0,0.00013662,2]
[408783912,1774254631852,-500.0,0.00013662,2]
[408783913,1774254631861,-181.08010151,0.00013662,2]
[408783915,1774254631871,-500.0,0.00013662,2]
[408783917,1774254631880,-500.0,0.00013662,2]
[408783919,1774254631890,-500.0,0.00013662,2]
[408783921,1774254631900,-500.0,0.00013662,2]
[408783922,1774254631909,-500.0,0.00013662,2]
[408783923,1774254631919,-500.0,0.00013662,2]
[408783924,1774254631928,-500.0,0.00013662,2]
[408783925,1774254631937,-500.0,0.00013662,2]
[408783926,1774254631947,-500.0,0.00013662,2]
[408783927,1774254631956,-500.0,0.00013662,2]
[408783928,1774254631966,-500.0,0.00013662,2]
[408783929,1774254631977,-159.0,0.00013667,3]
[408783930,1774254631986,-517.4885392,0.00013681,2]
[408783931,1774254631996,-580.8989572,0.00013698,2]
[408783932,1774254632005,-500.0,0.00013698,2]
[408783933,1774254632014,-500.0,0.00013698,2]
[408783934,1774254632024,-500.0,0.00013698,2]
[408783935,1774254632033,-641.26598056,0.00013698,2]
[408783936,1774254632046,-942.0,0.00013699,2]
[408783937,1774254632055,-9208.98462485,0.00013699,2]
[408783938,1774254632076,-677.27,0.00013699,2]
[408783939,1774254632088,-2033.32099426,0.00013699,2]
[408783940,1774254632145,-250.0,0.00013699,2]
[408783941,1774254632156,-950.8517465,0.00013699,2]
[408783943,1774254638802,-1100.0,0.00013699,2]
[408783944,1774254638818,-874.22355268,0.00013699,2]
[408783945,1774254638844,-1063.56996648,0.00013699,2]
[408783946,1774254638879,-3719.55,0.00013699,2]
[408783947,1774254638890,-708.41508843,0.00013699,2]
[408783951,1774254640390,-596.298,0.00013699,2]
[408783963,1774254642847,-8817.5060268,0.00013699,2]
[408783964,1774254642857,-500.0,0.00013717,2]
[408783965,1774254642867,-500.0,0.00013772,2]
[408783966,1774254642876,-300.61064699,0.0001378,2]
[408783967,1774254642886,-742.19,0.00013781,2]
[408783968,1774254642896,-500.0,0.00013827,2]
[408783969,1774254642906,-979.16666667,0.00013863,2]
[408783970,1774254642916,-160.0,0.00013863,2]
[408783971,1774254642925,-588.72754446,0.00013882,2]
[408783972,1774254642935,-500.0,0.00013999,2]
[408783973,1774254642945,-500.0,0.00013999,2]
[408783974,1774254642955,-500.0,0.00013999,2]
[408783976,1774254642964,-2.53721151,0.00013999,2]
[408784002,1774254643569,-497.46278849,0.00013999,2]
[408784003,1774254643579,-500.0,0.00013999,2]
[408784004,1774254643588,-611.29238791,0.00013999,2]
[408784005,1774254643598,-500.0,0.00013999,2]
[408784006,1774254643607,-500.0,0.00013999,2]
[408784007,1774254643617,-500.0,0.00013999,2]
[408784008,1774254643627,-500.0,0.00013999,2]
[408784009,1774254643637,-500.0,0.00013999,2]
[408784010,1774254643650,-500.0,0.00013999,2]
[408784011,1774254643659,-500.0,0.00013999,2]
[408784012,1774254643669,-500.0,0.00013999,2]
[408784013,1774254643679,-500.0,0.00013999,2]
[408784014,1774254643689,-500.0,0.00013999,2]
[408784015,1774254643699,-500.0,0.00013999,2]
[408784016,1774254643708,-500.0,0.00013999,2]
[408784017,1774254643718,-500.0,0.00013999,2]
[408784018,1774254643727,-500.0,0.00013999,2]
[408784019,1774254643737,-500.0,0.00013999,2]
[408784020,1774254643746,-500.0,0.00013999,2]
[408784021,1774254643756,-500.0,0.00013999,2]
[408784022,1774254643766,-500.0,0.00013999,2]
[408784023,1774254643776,-500.0,0.00013999,2]
[408784024,1774254643786,-304.65205832,0.00013999,2]
[408784026,1774254645605,-195.34794168,0.00013999,2]
[408784027,1774254645615,-500.0,0.00013999,2]
[408784028,1774254645625,-215.8451545,0.00013999,2]
[408784029,1774254645899,-284.1548455,0.00013999,2]
[408784030,1774254645910,-500.0,0.00013999,2]
[408784031,1774254645919,-500.0,0.00013999,2]
[408784032,1774254645929,-500.0,0.00013999,2]
[408784033,1774254645938,-196.43502494,0.00013999,2]
[408784034,1774254646010,-303.56497506,0.00013999,2]
[408784035,1774254646022,-500.0,0.00013999,2]
[408784036,1774254646032,-431.0876086,0.00013999,2]
[408784037,1774254646042,-148.40810655,0.00013999,2]
[408784051,1774254723304,5555.99,9.512e-05,2]
[408784052,1774254751445,3383.18872804,9.512e-05,2]
[408784053,1774254751466,615.81127196,9.512e-05,2]
[408784054,1774254778483,1399.0,9.512e-05,2]
[408784055,1774254908694,-160.0,9.512e-05,3]
[408784057,1774255831655,-538.8,0.00013,7]
[408784058,1774255831708,-6063.90491562,0.00013,7]
[408784059,1774255831718,-250.0,0.00013,2]
[408784060,1774255831731,-150.0,0.00013125,2]
[408784061,1774255831741,-1200.0,0.00013222,2]
[408784062,1774255831750,-1852.42,0.00013223,2]
[408784063,1774255831760,-300.0,0.00013253,2]
[408784064,1774255831770,-2000.0,0.00013254,2]
[408784065,1774255831779,-5943.78,0.00013285,2]
[408784066,1774255831789,-200.0,0.00013298,2]
[408784067,1774255831799,-4019.21,0.00013321,2]
[408784068,1774255831809,-1000.0,0.00013599,2]
[408784069,1774255831818,-200.0,0.00013699,2]
[408784070,1774255831828,-170.1608687,0.00013712,2]
[408784071,1774255831837,-1694.111,0.00013712,2]
[408784072,1774255831847,-578.20924308,0.00013756,2]
[408784073,1774255831857,-500.0,0.00013756,2]
[408784074,1774255831866,-58289.00374992,0.00013759,2]
[408784075,1774255831878,-501.43855008,0.00013759,2]
[408784077,1774255831888,-187.78006525,0.00013851,2]
[408784078,1774255831897,-198.37128699,0.00013851,2]
[408784079,1774255831907,-4015.64740756,0.00013859,2]
[408784080,1774255831918,-3949.71862535,0.00013859,2]
[408784082,1774255831929,-12225.36687461,0.00013859,2]
[408784090,1774255837642,-1412.62,0.00013859,2]
[408784091,1774255837654,-1185.97986445,0.00013859,2]
[408784093,1774255837802,-606.81999954,0.00013859,2]
[408784094,1774255837816,-514.98915407,0.00013859,2]
[408784095,1774255837856,-748.26893567,0.00013859,2]
[408784096,1774255837867,-2276.08308005,0.00013859,2]
[408784097,1774255837877,-2662.85996716,0.00013859,2]
[408784098,1774255837889,-4587.61926404,0.00013859,2]
[408784099,1774255837898,-18731.7,0.00013973,2]
[408784100,1774255837908,-979.16666667,0.00013973,2]
[408784102,1774255837917,-160.0,0.00013973,2]
[408784103,1774255837926,-200.0,0.00013999,2]
[408784104,1774255837936,-150.0,0.00014,2]
[408784105,1774255837945,-501.0,0.00014,2]
[408784106,1774255837954,-800.0,0.00014082,2]
[408784107,1774255837963,-200.0,0.00014139,2]
[408784108,1774255837972,-198.61889973,0.00014162,2]
[408784339,1774255840163,-3.34646755,0.00014162,2]
[408784341,1774255840174,-997.87532044,0.00014164,2]
[408784343,1774255840185,-635.10899384,0.00014164,2]
[408784345,1774255840197,-867.01568572,0.00014164,2]
[408784347,1774255840206,-517.4885392,0.00014173,2]
[408784349,1774255840215,-241.58730567,0.00014173,2]
[408784351,1774255840224,-674.26532562,0.00014173,2]
[408784353,1774255840234,-4246.09455238,0.00014173,2]
[408784355,1774255840243,-566.46,0.00014197,2]
[408784357,1774255840252,-799.94,0.00014255,2]
[408784359,1774255840261,-500.0,0.00014255,2]
[408784361,1774255840271,-500.0,0.00014255,2]
[408784363,1774255840280,-670.58624095,0.00014255,2]
[408784365,1774255840289,-500.0,0.00014255,2]
[408784367,1774255840299,-256.83430075,0.00014255,2]
[408784369,1774255840308,-500.0,0.00014255,2]
[408784371,1774255840318,-500.0,0.00014255,2]
[408784373,1774255840327,-500.0,0.00014255,2]
[408784375,1774255840336,-500.0,0.00014255,2]
[408784377,1774255840345,-500.0,0.00014255,2]
[408784379,1774255840354,-500.0,0.00014255,2]
[408784381,1774255840363,-500.0,0.00014255,2]
[408784383,1774255840372,-500.0,0.00014255,2]
[408784385,1774255840383,-500.0,0.00014255,2]
[408784386,1774255840391,-500.0,0.00014255,2]
[408784387,1774255840400,-500.0,0.00014255,2]
[408784388,1774255840409,-230.93821423,0.00014255,2]
[408784389,1774255840418,-500.0,0.00014262,2]
[408784390,1774255840427,-509.3501745,0.00014262,2]
[408784391,1774255840436,-347.46308842,0.00014262,2]
[408784392,1774255840445,-500.0,0.00014262,2]
[408784393,1774255840455,-500.0,0.00014262,2]
[408784394,1774255840464,-615.77979319,0.00014262,2]
[408784395,1774255840473,-500.0,0.00014262,2]
[408784396,1774255840482,-258.5562889,0.00014262,2]
[408784397,1774255840517,-48.55201775,0.00014262,2]
[408784398,1774255840526,-500.0,0.00014262,2]
[408784399,1774255840535,-489.2097294,0.00014262,2]
[408784438,1774255842881,-322.94797957,0.00014162,2]
[408784442,1774255846912,-677.05202043,0.00014162,2]
[408784443,1774255846921,-10.7902706,0.00014262,2]
[408784444,1774255846931,-312.15770897,0.00014262,2]
[408784445,1774255847001,-187.84229103,0.00014262,2]
[408784446,1774255847011,-187.3214269,0.00014262,2]
[408784447,1774255847026,-312.6785731,0.00014262,2]
[408784448,1774255847036,-113.36580756,0.00014262,2]
[408784454,1774256943842,177.0,0.00017,60]
[408784473,1774257031871,-1079.1,0.00011507,2]
[408784475,1774257031881,-1072.777977,0.00012594,2]
[408784477,1774257031891,-231.47265859,0.0001287,2]
[408784479,1774257031901,-1500.0,0.00012904,2]
[408784481,1774257031911,-210.03,0.0001297,2]
[408784483,1774257031922,-666.0,0.00012999,2]
[408784486,1774257031932,-1921.52684949,0.00013,2]
[408784488,1774257031942,-555.0,0.0001315,2]
[408784490,1774257031954,-511.0,0.0001315,2]
[408784492,1774257031964,-500.0,0.00013151,2]
[408784494,1774257031974,-1200.0,0.00013252,2]
[408784495,1774257031984,-300.0,0.00013253,2]
[408784496,1774257031994,-444.0,0.00013253,2]
[408784497,1774257032005,-300.0,0.00013253,2]
[408784498,1774257032015,-5998.0,0.00013254,2]
[408784499,1774257032025,-333.0,0.00013254,2]
[408784501,1774257032035,-222.0,0.00013287,2]
[408784503,1774257032045,-155.0,0.00013288,2]
[408784504,1774257032056,-6424.0,0.00013422,2]
[408784506,1774257032068,-2587.0,0.00013422,2]
[408784508,1774257032080,-3240.0,0.00013425,2]
[408784510,1774257032095,-3429.19044707,0.00013459,2]
[408784512,1774257032107,-158.87516048,0.00013549,2]
[408784514,1774257032117,-151.0,0.00013556,2]
[408784516,1774257032128,-150.0,0.00013557,2]
[408784519,1774257032138,-4143.8693,0.00013559,2]
[408784522,1774257032150,-31721.30766451,0.00013559,2]
[408784524,1774257032163,-2005.60183035,0.00013559,2]
[408784526,1774257032175,-92886.46498976,0.00013559,2]
[408784527,1774257032188,-952.0,0.00013559,2]
[408784528,1774257032375,-610.44814184,0.00013559,2]
[408784529,1774257032387,-2454.25531392,0.00013559,2]
[408784530,1774257032399,-1969.61424798,0.00013559,2]
[408784531,1774257032432,-3669.97329859,0.00013559,2]
[408784534,1774257039424,-316.95714956,0.00013559,2]
[408784535,1774257039435,-1020.52248414,0.00013559,2]
[408784536,1774257039446,-1750.79386043,0.00013559,2]
[408784537,1774257039458,-711.02513592,0.00013559,2]
[408784538,1774257039470,-560.65251767,0.00013559,2]
[408784539,1774257039481,-691.58645727,0.00013559,2]
[408784544,1774257040293,-899.72188916,0.00013459,2]
[408784545,1774257040305,-3542.34957723,0.00013459,2]
[408784546,1774257040314,-23254.52596129,0.00013559,2]
[408784547,1774257040326,-10722.44323136,0.00013559,2]
[408784552,1774257042926,-794.375757,0.00013559,2]
[408784553,1774257042971,-146179.92567518,0.00013559,2]
[408784554,1774257043076,-5026.9602235,0.00013559,2]
[408784583,1774257045949,-801.53308525,0.00013559,2]
[408784605,1774257362505,170.35,0.00017,60]
[408784612,1774258136260,9680.01,9.5e-05,3]
[408784613,1774258136283,10000.01,9.5e-05,3]
[408784614,1774258136310,10000.01,9.5e-05,3]
[408784615,1774258136336,10000.01,9.5e-05,3]
[408784616,1774258136358,10000.01,9.5e-05,3]
[408784617,1774258136381,10000.01,9.5e-05,3]
[408784618,1774258136403,10000.01,9.5e-05,3]
[408784619,1774258136425,320.0,9.5e-05,3]
[408784620,1774258147011,159.0,9.5e-05,3]
[408784621,1774258151050,158.0,9.5e-05,3]
[408784622,1774258163135,-159.0,0.0001075,3]
[408784623,1774258163157,-500.0,0.00011407,2]
[408784624,1774258163179,-283.0,0.00011407,2]
[408784625,1774258163201,-166.66,0.00011934,2]
[408784626,1774258163224,-159.0,0.00012,3]
[408784627,1774258163246,-166.66,0.00012185,2]
[408784628,1774258163269,-219.77627619,0.00012336,2]
[408784629,1774258163290,-2000.0,0.00012407,2]
[408784630,1774258163313,-166.66,0.00012436,2]
[408784631,1774258163338,-119.54038525,0.00012548,2]
[408784640,1774258231919,-300.0,0.00012434,2]
[408784641,1774258231929,-300.0,0.00012434,2]
[408784642,1774258231938,-1200.0,0.00012434,2]
[408784643,1774258231947,-300.0,0.00012434,2]
[408784644,1774258231956,-150.0,0.00012434,2]
[408784645,1774258231965,-457.598,0.00012435,2]
[408784646,1774258231983,-169406.562,0.00012435,2]
[408784647,1774258231992,-176.92,0.00012438,2]
[408784648,1774258232002,-150.0,0.00012548,3]
[408784649,1774258232011,-159.0,0.00012548,3]
[408784650,1774258232020,-158.0,0.00012548,3]
[408784651,1774258232029,-257.95834,0.00012588,2]
[408784652,1774258232043,-748.07802684,0.00012652,2]
[408784653,1774258232055,-53.45197316,0.00012652,2]
[408784654,1774258232066,-166.66,0.00012687,2]
[408784655,1774258232075,-166.66,0.00012747,2]
[408784656,1774258232084,-166.66,0.00012939,2]
[408784658,1774258232094,-250.0,0.00013,2]
[408784659,1774258232105,-166.66,0.00013168,2]
[408784660,1774258232114,-166.66,0.0001319,2]
[408784661,1774258232124,-24597.4307,0.00013259,2]
[408784662,1774258232134,-219.77627619,0.00013259,2]
[408784664,1774258232143,-3272.31355977,0.00013259,2]
[408784665,1774258232153,-543.36296619,0.00013259,2]
[408784667,1774258232162,-3886.81253303,0.00013259,2]
[408784669,1774258232171,-657.0,0.00013275,2]
[408784671,1774258232181,-1131.83351109,0.00013358,2]
[408784673,1774258232190,-500.0,0.00013358,2]
[408784674,1774258232200,-500.0,0.00013358,2]
[408784675,1774258232209,-500.0,0.00013358,2]
[408784676,1774258232218,-500.0,0.00013358,2]
[408784678,1774258232228,-500.0,0.00013358,2]
[408784680,1774258232238,-636.92723332,0.00013358,2]
[408784681,1774258232247,-500.0,0.00013358,2]
[408784682,1774258232257,-500.0,0.00013358,2]
[408784683,1774258232267,-500.0,0.00013358,2]
[408784684,1774258232276,-171.16046211,0.00013358,2]
[408784685,1774258232286,-308.56667881,0.00013358,2]
[408784686,1774258232296,-173.63683109,0.00013358,2]
[408784687,1774258232306,-500.0,0.00013358,2]
[408784688,1774258232316,-500.0,0.00013358,2]
[408784689,1774258232326,-500.0,0.00013358,2]
[408784690,1774258232336,-500.0,0.00013358,2]
[408784691,1774258232346,-500.0,0.00013358,2]
[408784692,1774258232364,-337.21483831,0.00013358,2]
[408784693,1774258232374,-500.0,0.00013358,2]
[408784694,1774258232384,-500.0,0.00013358,2]
[408784695,1774258232396,-585.11569432,0.00013358,2]
[408784696,1774258232406,-500.0,0.00013358,2]
[408784697,1774258232415,-500.0,0.00013358,2]
[408784698,1774258232427,-14.3029062,0.00013358,2]
[408784699,1774258232439,-485.6970938,0.00013358,2]
[408784700,1774258232448,-500.0,0.00013358,2]
[408784701,1774258232458,-500.0,0.00013358,2]
[408784702,1774258232468,-500.0,0.00013358,2]
[408784703,1774258232478,-500.0,0.00013358,2]
[408784704,1774258232487,-500.0,0.00013358,2]
[408784705,1774258232496,-500.0,0.00013358,2]
[408784706,1774258232506,-500.0,0.00013358,2]
[408784707,1774258232515,-500.0,0.00013358,2]
[408784708,1774258232524,-500.0,0.00013358,2]
[408784709,1774258232537,-500.0,0.00013358,2]
[408784710,1774258232548,-500.0,0.00013358,2]
[408784711,1774258232557,-500.0,0.00013358,2]
[408784712,1774258232568,-500.0,0.00013358,2]
[408784713,1774258232578,-500.0,0.00013358,2]
[408784714,1774258232592,-500.0,0.00013358,2]
[408784715,1774258232611,-500.0,0.00013358,2]
[408784716,1774258232625,-500.0,0.00013358,2]
[408784717,1774258232635,-500.0,0.00013358,2]
[408784718,1774258232645,-500.0,0.00013358,2]
[408784719,1774258232655,-500.0,0.00013358,2]
[408784720,1774258233146,-500.0,0.00013358,2]
[408784721,1774258233178,-500.0,0.00013358,2]
[408784722,1774258233187,-500.0,0.00013358,2]
[408784723,1774258233197,-500.0,0.00013358,2]
[408784724,1774258233206,-500.0,0.00013358,2]
[408784725,1774258233216,-500.0,0.00013358,2]
[408784726,1774258233226,-500.0,0.00013358,2]
[408784727,1774258233236,-500.0,0.00013358,2]
[408784728,1774258233245,-500.0,0.00013358,2]
[408784729,1774258233255,-500.0,0.00013358,2]
[408784730,1774258233264,-500.0,0.00013358,2]
[408784731,1774258233274,-500.0,0.00013358,2]
[408784732,1774258233283,-500.0,0.00013358,2]
[408784733,1774258233292,-500.0,0.00013358,2]
[408784734,1774258233302,-500.0,0.00013358,2]
[408784735,1774258233311,-500.0,0.00013358,2]
[408784736,1774258233321,-500.0,0.00013358,2]
[408784737,1774258233331,-500.0,0.00013358,2]
[408784738,1774258233340,-500.0,0.00013358,2]
[408784739,1774258233349,-500.0,0.00013358,2]
[408784740,1774258233363,-500.0,0.00013358,2]
[408784741,1774258233373,-500.0,0.00013358,2]
[408784742,1774258233383,-500.0,0.00013358,2]
[408784743,1774258233393,-500.0,0.00013358,2]
[408784744,1774258233403,-500.0,0.00013358,2]
[408784745,1774258233413,-500.0,0.00013358,2]
[408784746,1774258233422,-500.0,0.00013358,2]
[408784747,1774258233433,-500.0,0.00013358,2]
[408784748,1774258233442,-500.0,0.00013358,2]
[408784749,1774258233451,-500.0,0.00013358,2]
[408784750,1774258233461,-500.0,0.00013358,2]
[408784751,1774258233471,-500.0,0.00013358,2]
[408784752,1774258233480,-500.0,0.00013358,2]
[408784753,1774258233489,-500.0,0.00013358,2]
[408784754,1774258233498,-500.0,0.00013358,2]
[408784755,1774258233508,-500.0,0.00013358,2]
[408784756,1774258233517,-500.0,0.00013358,2]
[408784757,1774258233527,-500.0,0.00013358,2]
[408784758,1774258233536,-500.0,0.00013358,2]
[408784759,1774258233545,-500.0,0.00013358,2]
[408784760,1774258233555,-203.31672735,0.00013358,2]
[408784761,1774258233564,-500.0,0.00013358,2]
[408784762,1774258233573,-519.59968944,0.00013358,2]
[408784763,1774258233582,-519.59968944,0.00013358,2]
[408784764,1774258233592,-500.0,0.00013358,2]
[408784765,1774258233601,-519.59968944,0.00013358,2]
[408784766,1774258233610,-519.59968944,0.00013358,2]
[408784767,1774258233622,-500.0,0.00013358,2]
[408784768,1774258233632,-519.59968944,0.00013358,2]
[408784769,1774258233642,-500.0,0.00013358,2]
[408784770,1774258233651,-500.0,0.00013358,2]
[408784771,1774258233662,-519.59968944,0.00013358,2]
[408784772,1774258233672,-519.59968944,0.00013358,2]
[408784773,1774258233682,-500.0,0.00013358,2]
[408784774,1774258233691,-519.59968944,0.00013358,2]
[408784775,1774258233700,-500.0,0.00013358,2]
[408784776,1774258233709,-519.59968944,0.00013358,2]
[408784777,1774258233718,-519.59968944,0.00013358,2]
[408784778,1774258233727,-500.0,0.00013358,2]
[408784779,1774258233736,-519.59968944,0.00013358,2]
[408784780,1774258233746,-500.0,0.00013358,2]
[408784781,1774258233755,-519.59968944,0.00013358,2]
[408784782,1774258233764,-165.01285493,0.00013358,2]
[408784783,1774258233773,-519.59968944,0.00013358,2]
[408784784,1774258233783,-500.0,0.00013358,2]
[408784785,1774258233792,-519.59968944,0.00013358,2]
[408784786,1774258233801,-519.59968944,0.00013358,2]
[408784787,1774258233810,-519.59968944,0.00013358,2]
[408784788,1774258233819,-500.0,0.00013358,2]
[408784789,1774258233828,-519.59968944,0.00013358,2]
[408784790,1774258233837,-519.59968944,0.00013358,2]
[408784791,1774258233848,-500.0,0.00013358,2]
[408784792,1774258233857,-500.0,0.00013358,2]
[408784793,1774258233867,-519.59968944,0.00013358,2]
[408784794,1774258233876,-519.59968944,0.00013358,2]
[408784795,1774258233885,-500.0,0.00013358,2]
[408784796,1774258233894,-519.59968944,0.00013358,2]
[408784797,1774258233905,-500.0,0.00013358,2]
[408784798,1774258233916,-519.59968944,0.00013358,2]
[408784799,1774258233926,-519.59968944,0.00013358,2]
[408784800,1774258233936,-500.0,0.00013358,2]
[408784801,1774258233945,-519.59968944,0.00013358,2]
[408784802,1774258233954,-519.59968944,0.00013358,2]
[408784803,1774258233963,-519.59968944,0.00013358,2]
[408784804,1774258233972,-519.59968944,0.00013358,2]
[408784805,1774258233982,-519.59968944,0.00013358,2]
[408784806,1774258233991,-519.59968944,0.00013358,2]
[408784807,1774258234000,-519.59968944,0.00013358,2]
[408784808,1774258234009,-519.59968944,0.00013358,2]
[408784809,1774258234018,-519.59968944,0.00013358,2]
[408784810,1774258234028,-519.59968944,0.00013358,2]
[408784811,1774258234037,-519.59968944,0.00013358,2]
[408784812,1774258234046,-519.59968944,0.00013358,2]
[408784813,1774258234056,-519.59968944,0.00013358,2]
[408784814,1774258234065,-519.59968944,0.00013358,2]
[408784815,1774258234074,-519.59968944,0.00013358,2]
[408784816,1774258234084,-519.59968944,0.00013358,2]
[408784817,1774258234093,-519.59968944,0.00013358,2]
[408784818,1774258234103,-519.59968944,0.00013358,2]
[408784819,1774258234112,-519.59968947,0.00013358,2]
[408784820,1774258234122,-519.59968947,0.00013358,2]
[408784821,1774258234131,-519.59968947,0.00013358,2]
[408784822,1774258234141,-519.59968947,0.00013358,2]
[408784823,1774258234150,-519.59968945,0.00013358,2]
[408784824,1774258234159,-25755.1237,0.00013359,2]
[408784825,1774258234168,-31441.44360114,0.00013359,2]
[408784826,1774258234180,-18220.87280946,0.00013359,2]
[408784827,1774258234205,-520.49846645,0.00013359,2]
[408784828,1774258234216,-615.73022702,0.00013359,2]
[408784829,1774258234230,-2088.41628585,0.00013359,2]